[Event "Titled Tuesday Blitz January 25 2022"]
[White "Osmak, Yuliia"]
[Black "Mischuk, Dmitry"]
[WhiteFideId "14101602"]
[BlackFideId "14118734"]
[WhiteElo "2302"]
[BlackElo "2256"]
[Result "1-0"]
[Round "08"]
[TimeControl "180+1"]
[Date "2022.01.26"]
[WhiteClock "0:00:11"]
[BlackClock "0:00:13"]

1. e4 {[%clk 0:03:00]}  c5 {[%clk 0:02:41]} 2. c3 {[%clk 0:03:00]}  Nf6 {[%clk 0:02:41]} 3. e5 {[%clk 0:02:59]}  Nd5 {[%clk 0:02:40]} 4. Nf3 {[%clk 0:02:59]}  Nc6 {[%clk 0:02:39]} 5. Bc4 {[%clk 0:02:59]}  Nb6 {[%clk 0:02:32]} 6. Bb3 {[%clk 0:02:59]}  d5 {[%clk 0:02:33]} 7. exd6 {[%clk 0:02:52]}  c4 {[%clk 0:02:33]} 8. Bc2 {[%clk 0:02:51]}  Bg4 {[%clk 0:02:22]} 9. d4 {[%clk 0:02:32]}  cxd3 {[%clk 0:02:05]} 10. Qxd3 {[%clk 0:02:32]}  e6 {[%clk 0:02:02]} 11. Bf4 {[%clk 0:02:13]}  Bf5 {[%clk 0:01:59]} 12. Qd1 {[%clk 0:02:06]}  Bxc2 {[%clk 0:01:59]} 13. Qxc2 {[%clk 0:02:07]}  Bxd6 {[%clk 0:01:59]} 14. Bxd6 {[%clk 0:02:04]}  Qxd6 {[%clk 0:02:00]} 15. O-O {[%clk 0:02:04]}  O-O {[%clk 0:01:59]} 16. Nbd2 {[%clk 0:01:57]}  h6 {[%clk 0:01:59]} 17. Ne4 {[%clk 0:01:55]}  Qe7 {[%clk 0:01:58]} 18. Rad1 {[%clk 0:01:52]}  Rfd8 {[%clk 0:01:49]} 19. h3 {[%clk 0:01:49]}  Rd5 {[%clk 0:01:46]} 20. Rxd5 {[%clk 0:01:26]}  Nxd5 {[%clk 0:01:43]} 21. Rd1 {[%clk 0:01:26]}  Rd8 {[%clk 0:01:43]} 22. c4 {[%clk 0:01:20]}  Nf4 {[%clk 0:01:25]} 23. Rxd8+ {[%clk 0:01:18]}  Qxd8 {[%clk 0:01:26]} 24. Qd2 {[%clk 0:01:16]}  Qxd2 {[%clk 0:01:24]} 25. Nfxd2 {[%clk 0:01:10]}  b6 {[%clk 0:01:23]} 26. Kf1 {[%clk 0:01:06]}  Nd3 {[%clk 0:01:22]} 27. b3 {[%clk 0:00:55]}  Ncb4 {[%clk 0:01:22]} 28. Nc3 {[%clk 0:00:51]}  Nc1 {[%clk 0:01:18]} 29. a3 {[%clk 0:00:47]}  Nc2 {[%clk 0:01:18]} 30. Nb5 {[%clk 0:00:34]}  a5 {[%clk 0:01:16]} 31. f4 {[%clk 0:00:09]}  h5 {[%clk 0:01:04]} 32. g3 {[%clk 0:00:09]}  h4 {[%clk 0:01:04]} 33. Kg2 {[%clk 0:00:08]}  hxg3 {[%clk 0:01:00]} 34. Kxg3 {[%clk 0:00:09]}  Kf8 {[%clk 0:01:00]} 35. Kf3 {[%clk 0:00:08]}  Ke7 {[%clk 0:01:01]} 36. Ke4 {[%clk 0:00:08]}  g6 {[%clk 0:00:56]} 37. h4 {[%clk 0:00:07]}  Kd7 {[%clk 0:00:45]} 38. Ke5 {[%clk 0:00:06]}  Ke7 {[%clk 0:00:45]} 39. Ke4 {[%clk 0:00:07]}  Kd7 {[%clk 0:00:45]} 40. Ke5 {[%clk 0:00:07]}  a4 {[%clk 0:00:31]} 41. bxa4 {[%clk 0:00:05]}  Ke7 {[%clk 0:00:31]} 42. Ke4 {[%clk 0:00:05]}  f5+ {[%clk 0:00:27]} 43. Kf3 {[%clk 0:00:05]}  Nd3 {[%clk 0:00:26]} 44. Nb3 {[%clk 0:00:02]}  Nb2 {[%clk 0:00:26]} 45. a5 {[%clk 0:00:02]}  bxa5 {[%clk 0:00:26]} 46. Nxa5 {[%clk 0:00:02]}  Kd7 {[%clk 0:00:24]} 47. Ke2 {[%clk 0:00:02]}  e5 {[%clk 0:00:20]} 48. fxe5 {[%clk 0:00:01]}  f4 {[%clk 0:00:17]} 49. Kd2 {[%clk 0:00:02]}  Ne3 {[%clk 0:00:18]} 50. Ke2 {[%clk 0:00:01]}  Ke6 {[%clk 0:00:15]} 51. c5 {[%clk 0:00:01]}  Na4 {[%clk 0:00:09]} 52. c6 {[%clk 0:00:01]}  Nb6 {[%clk 0:00:09]} 53. c7 {[%clk 0:00:01]}  Nc8 {[%clk 0:00:08]} 54. Nb7 {[%clk 0:00:01]}  Kxe5 {[%clk 0:00:08]} 55. N7d6 {[%clk 0:00:01]}  Nxd6 {[%clk 0:00:01]} 56. Nxd6 {[%clk 0:00:02]}  Kxd6 {[%clk 0:00:01]} 57. c8=Q {[%clk 0:00:02]}  Ke5 {[%clk 0:00:02]} 58. Qe8+ {[%clk 0:00:02]}  Kf5 {[%clk 0:00:02]} 59. Qf8+ {[%clk 0:00:02]}  Kg4 {[%clk 0:00:03]} 60. Qc8+ {[%clk 0:00:02]}  Kxh4 {[%clk 0:00:03]} 61. Qc7 {[%clk 0:00:02]}  g5 {[%clk 0:00:04]} 62. Qh7+ {[%clk 0:00:02]}  Kg3 {[%clk 0:00:04]} 63. Qe4 {[%clk 0:00:02]}  g4 {[%clk 0:00:04]} 64. a4 {[%clk 0:00:01]}  Ng2 {[%clk 0:00:04]} 65. a5 {[%clk 0:00:01]}  f3+ {[%clk 0:00:05]} 66. Kf1 {[%clk 0:00:02]}  Nf4 {[%clk 0:00:02]} 67. Qe5 {[%clk 0:00:02]}  f2 {[%clk 0:00:02]} 68. Qe3+ {[%clk 0:00:02]}  Kh2 {[%clk 0:00:03]} 69. Qxf2+ {[%clk 0:00:02]}  Kh3 {[%clk 0:00:02]} 70. Qxf4 {[%clk 0:00:03]}  g3 {[%clk 0:00:03]} 71. Qxg3+ {[%clk 0:00:03]}  Kxg3 {[%clk 0:00:03]} 72. a6 {[%clk 0:00:04]}  Kg4 {[%clk 0:00:04]} 73. a7 {[%clk 0:00:05]}  Kh3 {[%clk 0:00:04]} 74. a8=Q {[%clk 0:00:06]}  Kg4 {[%clk 0:00:05]} 75. Qb7 {[%clk 0:00:06]}  Kh3 {[%clk 0:00:06]} 76. Qc6 {[%clk 0:00:07]}  Kg3 {[%clk 0:00:07]} 77. Qd5 {[%clk 0:00:08]}  Kh2 {[%clk 0:00:08]} 78. Qe4 {[%clk 0:00:08]}  Kg3 {[%clk 0:00:09]} 79. Qe3+ {[%clk 0:00:08]}  Kh2 {[%clk 0:00:09]} 80. Qf2+ {[%clk 0:00:08]}  Kh3 {[%clk 0:00:10]} 81. Qg2+ {[%clk 0:00:09]}  Kh4 {[%clk 0:00:10]} 82. Kf2 {[%clk 0:00:10]}  Kh5 {[%clk 0:00:11]} 83. Kf3 {[%clk 0:00:10]}  Kh6 {[%clk 0:00:11]} 84. Kf4 {[%clk 0:00:11]}  Kh7 {[%clk 0:00:12]} 85. Kf5 {[%clk 0:00:12]}  Kh6 {[%clk 0:00:13]} 86. Qg6# {[%clk 0:00:11]} 1-0


[Site "https://www.chess.com"]

[Event "Titled Tuesday Blitz January 25 2022"]
[White "Panesar Vedant"]
[Black "Sadovsky, Artem"]
[WhiteFideId "35033018"]
[BlackFideId "4155840"]
[WhiteElo "1971"]
[BlackElo "2369"]
[Result "0-1"]
[Round "08"]
[TimeControl "180+1"]
[Date "2022.01.26"]
[WhiteClock "0:00:17"]
[BlackClock "0:01:16"]

1. d4 {[%clk 0:02:48]}  g6 {[%clk 0:02:59]} 2. c4 {[%clk 0:02:46]}  Bg7 {[%clk 0:02:58]} 3. Nf3 {[%clk 0:02:46]}  d6 {[%clk 0:02:58]} 4. Nc3 {[%clk 0:02:46]}  e5 {[%clk 0:02:59]} 5. dxe5 {[%clk 0:02:42]}  dxe5 {[%clk 0:02:59]} 6. Qxd8+ {[%clk 0:02:43]}  Kxd8 {[%clk 0:03:00]} 7. Bg5+ {[%clk 0:02:42]}  f6 {[%clk 0:03:01]} 8. O-O-O+ {[%clk 0:02:42]}  Nd7 {[%clk 0:03:01]} 9. Be3 {[%clk 0:02:39]}  Bh6 {[%clk 0:03:02]} 10. Bxh6 {[%clk 0:02:35]}  Nxh6 {[%clk 0:03:03]} 11. h3 {[%clk 0:02:33]}  c6 {[%clk 0:03:01]} 12. e3 {[%clk 0:02:24]}  Ke7 {[%clk 0:03:00]} 13. g4 {[%clk 0:02:24]}  Nf7 {[%clk 0:03:00]} 14. Bg2 {[%clk 0:02:25]}  a5 {[%clk 0:02:59]} 15. Ne4 {[%clk 0:02:23]}  f5 {[%clk 0:02:51]} 16. gxf5 {[%clk 0:02:16]}  gxf5 {[%clk 0:02:52]} 17. Ng3 {[%clk 0:02:17]}  Nc5 {[%clk 0:02:50]} 18. Nh4 {[%clk 0:01:51]}  Nd6 {[%clk 0:02:50]} 19. Bf1 {[%clk 0:01:39]}  Be6 {[%clk 0:02:34]} 20. b3 {[%clk 0:01:36]}  Nde4 {[%clk 0:01:56]} 21. Rh2 {[%clk 0:00:42]}  Raf8 {[%clk 0:01:50]} 22. Nxe4 {[%clk 0:00:41]}  fxe4 {[%clk 0:01:50]} 23. Be2 {[%clk 0:00:39]}  Rf7 {[%clk 0:01:47]} 24. Rg2 {[%clk 0:00:36]}  Rhf8 {[%clk 0:01:47]} 25. Rf1 {[%clk 0:00:33]}  a4 {[%clk 0:01:42]} 26. b4 {[%clk 0:00:32]}  Nd3+ {[%clk 0:01:42]} 27. Bxd3 {[%clk 0:00:32]}  exd3 {[%clk 0:01:43]} 28. Rg5 {[%clk 0:00:26]}  Rxf2 {[%clk 0:01:40]} 29. Rg7+ {[%clk 0:00:21]}  R2f7 {[%clk 0:01:25]} 30. Rgxf7+ {[%clk 0:00:20]}  Rxf7 {[%clk 0:01:26]} 31. Rxf7+ {[%clk 0:00:20]}  Kxf7 {[%clk 0:01:27]} 32. Kd2 {[%clk 0:00:20]}  e4 {[%clk 0:01:24]} 33. Ng2 {[%clk 0:00:19]}  Bxh3 {[%clk 0:01:24]} 34. Nf4 {[%clk 0:00:19]}  Be6 {[%clk 0:01:25]} 35. a3 {[%clk 0:00:17]}  Bxc4 {[%clk 0:01:25]} 36. Nh5 {[%clk 0:00:16]}  Kg6 {[%clk 0:01:20]} 37. Ng3 {[%clk 0:00:16]}  Bd5 {[%clk 0:01:20]} 38. Kc3 {[%clk 0:00:16]}  h5 {[%clk 0:01:19]} 39. b5 {[%clk 0:00:16]}  cxb5 {[%clk 0:01:17]} 40. Nf1 {[%clk 0:00:16]}  h4 {[%clk 0:01:16]} 41. Kd4 {[%clk 0:00:16]}  Bc6 {[%clk 0:01:15]} 42. Ke5 {[%clk 0:00:16]}  b4 {[%clk 0:01:15]} 43. axb4 {[%clk 0:00:17]}  a3 {[%clk 0:01:16]} 0-1


[Site "https://www.chess.com"]

[Event "Titled Tuesday Blitz January 25 2022"]
[White "Papp, Petra"]
[Black "Evdokimov, Alexander A."]
[WhiteFideId "739049"]
[BlackFideId "4139275"]
[WhiteElo "2259"]
[BlackElo "2444"]
[Result "1/2-1/2"]
[Round "08"]
[TimeControl "180+1"]
[Date "2022.01.26"]
[WhiteClock "0:00:07"]
[BlackClock "0:00:11"]

1. d4 {[%clk 0:02:53]}  Nf6 {[%clk 0:02:58]} 2. c4 {[%clk 0:02:50]}  g6 {[%clk 0:02:58]} 3. Nc3 {[%clk 0:02:49]}  Bg7 {[%clk 0:02:58]} 4. e4 {[%clk 0:02:49]}  O-O {[%clk 0:02:58]} 5. h3 {[%clk 0:02:48]}  d6 {[%clk 0:02:59]} 6. Be3 {[%clk 0:02:47]}  e5 {[%clk 0:02:59]} 7. d5 {[%clk 0:02:47]}  c6 {[%clk 0:02:51]} 8. g4 {[%clk 0:02:46]}  a6 {[%clk 0:02:45]} 9. Nge2 {[%clk 0:02:43]}  cxd5 {[%clk 0:02:44]} 10. cxd5 {[%clk 0:02:43]}  b5 {[%clk 0:02:44]} 11. Ng3 {[%clk 0:02:34]}  Nbd7 {[%clk 0:02:42]} 12. f3 {[%clk 0:02:19]}  Bb7 {[%clk 0:02:36]} 13. Be2 {[%clk 0:02:17]}  Ne8 {[%clk 0:02:34]} 14. Qd2 {[%clk 0:02:14]}  Rc8 {[%clk 0:02:32]} 15. h4 {[%clk 0:02:12]}  Nc5 {[%clk 0:02:26]} 16. Kf1 {[%clk 0:02:01]}  b4 {[%clk 0:02:10]} 17. Nd1 {[%clk 0:02:00]}  a5 {[%clk 0:02:10]} 18. Kg2 {[%clk 0:01:54]}  Nc7 {[%clk 0:02:08]} 19. h5 {[%clk 0:01:49]}  Qd7 {[%clk 0:01:52]} 20. Nf2 {[%clk 0:01:43]}  f5 {[%clk 0:01:08]} 21. Bh6 {[%clk 0:00:52]}  f4 {[%clk 0:01:01]} 22. Bxg7 {[%clk 0:00:49]}  Kxg7 {[%clk 0:00:57]} 23. hxg6 {[%clk 0:00:42]}  hxg6 {[%clk 0:00:55]} 24. Nf1 {[%clk 0:00:41]}  Rh8 {[%clk 0:00:51]} 25. Qd1 {[%clk 0:00:28]}  Qe7 {[%clk 0:00:50]} 26. Nd2 {[%clk 0:00:27]}  Rxh1 {[%clk 0:00:48]} 27. Qxh1 {[%clk 0:00:26]}  Rh8 {[%clk 0:00:49]} 28. Nh3 {[%clk 0:00:22]}  Qh4 {[%clk 0:00:44]} 29. Nf1 {[%clk 0:00:20]}  Nxd5 {[%clk 0:00:36]} 30. exd5 {[%clk 0:00:19]}  Bxd5 {[%clk 0:00:37]} 31. Nf2 {[%clk 0:00:20]}  Qg5 {[%clk 0:00:31]} 32. Qg1 {[%clk 0:00:18]}  Rh4 {[%clk 0:00:27]} 33. Nh2 {[%clk 0:00:16]}  Ne6 {[%clk 0:00:24]} 34. Kf1 {[%clk 0:00:13]}  Nd4 {[%clk 0:00:23]} 35. Qg2 {[%clk 0:00:10]}  Qh6 {[%clk 0:00:22]} 36. g5 {[%clk 0:00:06]}  Qh5 {[%clk 0:00:20]} 37. Nhg4 {[%clk 0:00:07]}  Qxg5 {[%clk 0:00:19]} 38. Rc1 {[%clk 0:00:05]}  Qd8 {[%clk 0:00:17]} 39. Ke1 {[%clk 0:00:04]}  Be6 {[%clk 0:00:15]} 40. Ne4 {[%clk 0:00:04]}  Bxg4 {[%clk 0:00:13]} 41. fxg4 {[%clk 0:00:04]}  f3 {[%clk 0:00:12]} 42. Bxf3 {[%clk 0:00:03]}  Rh2 {[%clk 0:00:13]} 43. Qg3 {[%clk 0:00:02]}  Qh4 {[%clk 0:00:12]} 44. Qxh4 {[%clk 0:00:02]}  Nxf3+ {[%clk 0:00:12]} 45. Kd1 {[%clk 0:00:02]}  Nxh4 {[%clk 0:00:12]} 46. Rc8 {[%clk 0:00:03]}  Nf3 {[%clk 0:00:11]} 47. Rc7+ {[%clk 0:00:03]}  Kh6 {[%clk 0:00:11]} 48. g5+ {[%clk 0:00:04]}  Kh5 {[%clk 0:00:11]} 49. Rh7+ {[%clk 0:00:03]}  Kg4 {[%clk 0:00:12]} 50. Rxh2 {[%clk 0:00:03]}  Nxh2 {[%clk 0:00:12]} 51. Nxd6 {[%clk 0:00:04]}  Kxg5 {[%clk 0:00:13]} 52. Nc4 {[%clk 0:00:04]}  Kf4 {[%clk 0:00:13]} 53. Nxa5 {[%clk 0:00:05]}  g5 {[%clk 0:00:14]} 54. Ke2 {[%clk 0:00:05]}  g4 {[%clk 0:00:14]} 55. Nc4 {[%clk 0:00:05]}  g3 {[%clk 0:00:14]} 56. Ne3 {[%clk 0:00:04]}  Ng4 {[%clk 0:00:13]} 57. Ng2+ {[%clk 0:00:04]}  Ke4 {[%clk 0:00:13]} 58. a4 {[%clk 0:00:05]}  bxa3 {[%clk 0:00:13]} 59. bxa3 {[%clk 0:00:06]}  Nf6 {[%clk 0:00:13]} 60. a4 {[%clk 0:00:07]}  Nd5 {[%clk 0:00:14]} 61. a5 {[%clk 0:00:07]}  Nb4 {[%clk 0:00:14]} 62. Ne1 {[%clk 0:00:07]}  Kf4 {[%clk 0:00:13]} 63. Kf1 {[%clk 0:00:06]}  Ke3 {[%clk 0:00:13]} 64. Kg2 {[%clk 0:00:06]}  Kf4 {[%clk 0:00:13]} 65. Nf3 {[%clk 0:00:05]}  e4 {[%clk 0:00:13]} 66. Ng1 {[%clk 0:00:06]}  e3 {[%clk 0:00:13]} 67. Ne2+ {[%clk 0:00:06]}  Ke4 {[%clk 0:00:14]} 68. Kxg3 {[%clk 0:00:06]}  Kd3 {[%clk 0:00:14]} 69. Kf3 {[%clk 0:00:06]}  Kd2 {[%clk 0:00:13]} 70. Nf4 {[%clk 0:00:07]}  Kc3 {[%clk 0:00:10]} 71. Kxe3 {[%clk 0:00:06]}  Kc4 {[%clk 0:00:11]} 72. Ke4 {[%clk 0:00:06]}  Kb5 {[%clk 0:00:11]} 73. Nd5 {[%clk 0:00:07]}  Kxa5 {[%clk 0:00:11]} 1/2-1/2


[Site "https://www.chess.com"]

[Event "Titled Tuesday Blitz January 25 2022"]
[White "Pavlidou, Ekaterini"]
[Black "Baules Rodriguez, Jorge Luis"]
[WhiteFideId "4213262"]
[BlackFideId "6600247"]
[WhiteElo "2127"]
[BlackElo "2375"]
[Result "0-1"]
[Round "08"]
[TimeControl "180+1"]
[Date "2022.01.26"]
[WhiteClock "0:00:16"]
[BlackClock "0:00:11"]

1. d4 {[%clk 0:03:00]}  Nf6 {[%clk 0:02:57]} 2. c4 {[%clk 0:03:00]}  g6 {[%clk 0:02:57]} 3. Nc3 {[%clk 0:03:00]}  d5 {[%clk 0:02:57]} 4. Nf3 {[%clk 0:02:59]}  Bg7 {[%clk 0:02:56]} 5. h4 {[%clk 0:02:59]}  dxc4 {[%clk 0:02:48]} 6. e3 {[%clk 0:02:52]}  c5 {[%clk 0:01:42]} 7. Bxc4 {[%clk 0:02:51]}  O-O {[%clk 0:01:38]} 8. Ne5 {[%clk 0:02:44]}  Nc6 {[%clk 0:01:29]} 9. Nxc6 {[%clk 0:02:13]}  bxc6 {[%clk 0:01:28]} 10. h5 {[%clk 0:02:13]}  Nxh5 {[%clk 0:01:06]} 11. g4 {[%clk 0:02:08]}  Nf6 {[%clk 0:01:05]} 12. g5 {[%clk 0:02:07]}  Nd5 {[%clk 0:01:01]} 13. Bd2 {[%clk 0:01:58]}  cxd4 {[%clk 0:00:55]} 14. exd4 {[%clk 0:01:54]}  Bxd4 {[%clk 0:00:55]} 15. Qf3 {[%clk 0:01:48]}  Qd6 {[%clk 0:00:40]} 16. Ne4 {[%clk 0:01:44]}  Qe5 {[%clk 0:00:38]} 17. O-O-O {[%clk 0:01:40]}  Bf5 {[%clk 0:00:38]} 18. Nc3 {[%clk 0:01:02]}  Nxc3 {[%clk 0:00:29]} 19. bxc3 {[%clk 0:01:01]}  Rab8 {[%clk 0:00:28]} 20. Bb3 {[%clk 0:00:56]}  Qc5 {[%clk 0:00:23]} 21. Kb2 {[%clk 0:00:53]}  Bg7 {[%clk 0:00:20]} 22. Qg3 {[%clk 0:00:46]}  Rbd8 {[%clk 0:00:18]} 23. Rxh7 {[%clk 0:00:43]}  Kxh7 {[%clk 0:00:16]} 24. Qh2+ {[%clk 0:00:36]}  Kg8 {[%clk 0:00:16]} 25. f4 {[%clk 0:00:35]}  Rxd2+ {[%clk 0:00:13]} 26. Qxd2 {[%clk 0:00:34]}  a5 {[%clk 0:00:13]} 27. a4 {[%clk 0:00:21]}  Rb8 {[%clk 0:00:13]} 28. Rh1 {[%clk 0:00:16]}  Qb4 {[%clk 0:00:11]} 0-1


[Site "https://www.chess.com"]

[Event "Titled Tuesday Blitz January 25 2022"]
[White "Popadic, Dragan"]
[Black "Bodnar, Nikolay"]
[WhiteFideId "913650"]
[BlackFideId "14106469"]
[WhiteElo "2199"]
[BlackElo "2296"]
[Result "0-1"]
[Round "08"]
[TimeControl "180+1"]
[Date "2022.01.26"]
[WhiteClock "0:00:01"]
[BlackClock "0:00:39"]

1. e4 {[%clk 0:03:00]}  e5 {[%clk 0:02:58]} 2. d4 {[%clk 0:03:00]}  exd4 {[%clk 0:02:59]} 3. Qxd4 {[%clk 0:03:00]}  Nc6 {[%clk 0:02:58]} 4. Qe3 {[%clk 0:03:00]}  Nf6 {[%clk 0:02:59]} 5. Nc3 {[%clk 0:02:59]}  Bb4 {[%clk 0:03:00]} 6. Bd2 {[%clk 0:03:00]}  O-O {[%clk 0:03:00]} 7. O-O-O {[%clk 0:03:00]}  Re8 {[%clk 0:03:01]} 8. Qg3 {[%clk 0:03:00]}  Rxe4 {[%clk 0:03:02]} 9. a3 {[%clk 0:02:57]}  Bd6 {[%clk 0:02:52]} 10. f4 {[%clk 0:02:57]}  Re8 {[%clk 0:02:22]} 11. Bd3 {[%clk 0:02:53]}  Bf8 {[%clk 0:02:15]} 12. Nf3 {[%clk 0:02:53]}  d5 {[%clk 0:02:16]} 13. Ng5 {[%clk 0:02:38]}  h6 {[%clk 0:02:02]} 14. h4 {[%clk 0:02:38]}  d4 {[%clk 0:01:55]} 15. Nce4 {[%clk 0:02:33]}  Nxe4 {[%clk 0:01:46]} 16. Nxe4 {[%clk 0:02:13]}  Bf5 {[%clk 0:01:43]} 17. Rde1 {[%clk 0:02:04]}  Bxe4 {[%clk 0:01:35]} 18. Bxe4 {[%clk 0:02:01]}  Rxe4 {[%clk 0:01:36]} 19. Rxe4 {[%clk 0:02:00]}  Qd5 {[%clk 0:01:36]} 20. Rhe1 {[%clk 0:01:37]}  Qa2 {[%clk 0:01:35]} 21. Kd1 {[%clk 0:01:37]}  Qxb2 {[%clk 0:01:32]} 22. Qb3 {[%clk 0:01:26]}  Qxa3 {[%clk 0:01:17]} 23. Qxa3 {[%clk 0:01:23]}  Bxa3 {[%clk 0:01:18]} 24. Re8+ {[%clk 0:01:23]}  Rxe8 {[%clk 0:01:19]} 25. Rxe8+ {[%clk 0:01:22]}  Kh7 {[%clk 0:01:19]} 26. g4 {[%clk 0:01:15]}  h5 {[%clk 0:01:13]} 27. gxh5 {[%clk 0:01:10]}  Bd6 {[%clk 0:01:13]} 28. Ke2 {[%clk 0:01:08]}  Ne7 {[%clk 0:01:10]} 29. Kf3 {[%clk 0:01:01]}  Nf5 {[%clk 0:01:08]} 30. Kg4 {[%clk 0:00:57]}  Nh6+ {[%clk 0:01:06]} 31. Kh3 {[%clk 0:00:53]}  b6 {[%clk 0:01:03]} 32. Ra8 {[%clk 0:00:36]}  a5 {[%clk 0:01:03]} 33. Kg3 {[%clk 0:00:35]}  f5 {[%clk 0:00:56]} 34. Kf3 {[%clk 0:00:24]}  Ng4 {[%clk 0:00:55]} 35. Bc1 {[%clk 0:00:22]}  Nf6 {[%clk 0:00:50]} 36. Bb2 {[%clk 0:00:19]}  Nxh5 {[%clk 0:00:50]} 37. Bxd4 {[%clk 0:00:17]}  Nxf4 {[%clk 0:00:50]} 38. Be3 {[%clk 0:00:11]}  Nd5 {[%clk 0:00:50]} 39. Bd2 {[%clk 0:00:10]}  Kg6 {[%clk 0:00:49]} 40. Rh8 {[%clk 0:00:07]}  Nf6 {[%clk 0:00:48]} 41. Be3 {[%clk 0:00:05]}  Nd5 {[%clk 0:00:48]} 42. Bd2 {[%clk 0:00:05]}  Kf6 {[%clk 0:00:46]} 43. h5 {[%clk 0:00:04]}  Ke6 {[%clk 0:00:41]} 44. Ra8 {[%clk 0:00:04]}  Nf6 {[%clk 0:00:39]} 45. h6 {[%clk 0:00:02]}  gxh6 {[%clk 0:00:39]} 46. Bxh6 {[%clk 0:00:01]}  Ne4 {[%clk 0:00:39]} 0-1


[Site "https://www.chess.com"]

[Event "Titled Tuesday Blitz January 25 2022"]
[White "Potapova, Margarita"]
[Black "Miszler, Levente"]
[WhiteFideId "14126869"]
[BlackFideId "763276"]
[WhiteElo "2209"]
[BlackElo "1966"]
[Result "1-0"]
[Round "08"]
[TimeControl "180+1"]
[Date "2022.01.26"]
[WhiteClock "0:00:12"]
[BlackClock "0:00:16"]

1. d4 {[%clk 0:02:58]}  e6 {[%clk 0:03:00]} 2. c4 {[%clk 0:02:58]}  Nf6 {[%clk 0:02:59]} 3. Nc3 {[%clk 0:02:58]}  d5 {[%clk 0:02:55]} 4. Nf3 {[%clk 0:02:57]}  Be7 {[%clk 0:02:52]} 5. Bf4 {[%clk 0:02:57]}  c6 {[%clk 0:02:50]} 6. e3 {[%clk 0:02:56]}  O-O {[%clk 0:02:49]} 7. h3 {[%clk 0:02:55]}  Nbd7 {[%clk 0:02:49]} 8. c5 {[%clk 0:02:55]}  b6 {[%clk 0:02:33]} 9. b4 {[%clk 0:02:55]}  a5 {[%clk 0:02:33]} 10. a3 {[%clk 0:02:55]}  Ba6 {[%clk 0:02:28]} 11. Bxa6 {[%clk 0:02:51]}  Rxa6 {[%clk 0:02:27]} 12. O-O {[%clk 0:02:52]}  Qa8 {[%clk 0:02:22]} 13. b5 {[%clk 0:02:46]}  cxb5 {[%clk 0:02:21]} 14. Nxb5 {[%clk 0:02:47]}  Qc6 {[%clk 0:02:06]} 15. a4 {[%clk 0:02:06]}  bxc5 {[%clk 0:02:02]} 16. dxc5 {[%clk 0:02:05]}  Nxc5 {[%clk 0:01:58]} 17. Rc1 {[%clk 0:02:06]}  Qb7 {[%clk 0:01:54]} 18. Qe2 {[%clk 0:01:47]}  Rc6 {[%clk 0:01:38]} 19. Nfd4 {[%clk 0:01:41]}  Rcc8 {[%clk 0:01:34]} 20. Nd6 {[%clk 0:01:41]}  Bxd6 {[%clk 0:01:33]} 21. Bxd6 {[%clk 0:01:42]}  Nxa4 {[%clk 0:01:27]} 22. Bxf8 {[%clk 0:01:40]}  Rxf8 {[%clk 0:01:27]} 23. Qa2 {[%clk 0:01:32]}  Nb6 {[%clk 0:01:21]} 24. Qxa5 {[%clk 0:01:28]}  Nc4 {[%clk 0:01:21]} 25. Qb5 {[%clk 0:01:19]}  Qa7 {[%clk 0:01:17]} 26. Ra1 {[%clk 0:01:17]}  Qc7 {[%clk 0:01:16]} 27. Qc6 {[%clk 0:01:04]}  Qe5 {[%clk 0:01:16]} 28. Ra8 {[%clk 0:00:59]}  g6 {[%clk 0:01:12]} 29. Rxf8+ {[%clk 0:00:55]}  Kxf8 {[%clk 0:01:13]} 30. Nf3 {[%clk 0:00:49]}  Qf5 {[%clk 0:01:09]} 31. Nd4 {[%clk 0:00:44]}  Qe5 {[%clk 0:01:09]} 32. Rb1 {[%clk 0:00:40]}  Ne4 {[%clk 0:01:08]} 33. Rb7 {[%clk 0:00:34]}  Nxf2 {[%clk 0:01:00]} 34. Nxe6+ {[%clk 0:00:33]}  Qxe6 {[%clk 0:00:51]} 35. Qxe6 {[%clk 0:00:31]}  fxe6 {[%clk 0:00:51]} 36. Kxf2 {[%clk 0:00:31]}  Kg8 {[%clk 0:00:51]} 37. Re7 {[%clk 0:00:26]}  e5 {[%clk 0:00:51]} 38. Rd7 {[%clk 0:00:25]}  d4 {[%clk 0:00:51]} 39. exd4 {[%clk 0:00:25]}  exd4 {[%clk 0:00:52]} 40. Rxd4 {[%clk 0:00:25]}  Ne5 {[%clk 0:00:52]} 41. Ra4 {[%clk 0:00:24]}  Nf7 {[%clk 0:00:52]} 42. Ra6 {[%clk 0:00:23]}  Kg7 {[%clk 0:00:53]} 43. Kg3 {[%clk 0:00:21]}  Kg8 {[%clk 0:00:28]} 44. Kf4 {[%clk 0:00:20]}  Kg7 {[%clk 0:00:29]} 45. Ra7 {[%clk 0:00:16]}  Kf6 {[%clk 0:00:28]} 46. g4 {[%clk 0:00:15]}  g5+ {[%clk 0:00:23]} 47. Ke4 {[%clk 0:00:14]}  h6 {[%clk 0:00:22]} 48. Ra6+ {[%clk 0:00:13]}  Kg7 {[%clk 0:00:22]} 49. Kf5 {[%clk 0:00:14]}  Kg8 {[%clk 0:00:16]} 50. Kg6 {[%clk 0:00:12]} 1-0


[Site "https://www.chess.com"]

[Event "Titled Tuesday Blitz January 25 2022"]
[White "Romanchuk, Viktor"]
[Black "Martin, Lewis"]
[WhiteFideId "14109271"]
[BlackFideId "410551"]
[WhiteElo "2242"]
[BlackElo "2145"]
[Result "1-0"]
[Round "08"]
[TimeControl "180+1"]
[Date "2022.01.26"]
[WhiteClock "0:00:17"]
[BlackClock "0:00:02"]

1. d4 {[%clk 0:03:00]}  d5 {[%clk 0:02:59]} 2. c4 {[%clk 0:02:59]}  c6 {[%clk 0:03:00]} 3. Nc3 {[%clk 0:02:59]}  Nf6 {[%clk 0:03:00]} 4. e3 {[%clk 0:02:59]}  e6 {[%clk 0:02:59]} 5. Nf3 {[%clk 0:02:59]}  Nbd7 {[%clk 0:02:58]} 6. Qc2 {[%clk 0:02:59]}  Bd6 {[%clk 0:02:55]} 7. b3 {[%clk 0:02:59]}  O-O {[%clk 0:02:54]} 8. Bb2 {[%clk 0:02:59]}  a6 {[%clk 0:02:52]} 9. Be2 {[%clk 0:02:50]}  Qe7 {[%clk 0:02:43]} 10. O-O {[%clk 0:02:48]}  dxc4 {[%clk 0:02:41]} 11. bxc4 {[%clk 0:02:46]}  b5 {[%clk 0:02:41]} 12. e4 {[%clk 0:02:23]}  e5 {[%clk 0:02:39]} 13. d5 {[%clk 0:02:22]}  bxc4 {[%clk 0:02:17]} 14. dxc6 {[%clk 0:02:18]}  Nb6 {[%clk 0:02:16]} 15. a4 {[%clk 0:01:56]}  a5 {[%clk 0:02:09]} 16. Nb5 {[%clk 0:01:50]}  Bc5 {[%clk 0:01:51]} 17. Nxe5 {[%clk 0:01:41]}  Be6 {[%clk 0:01:46]} 18. Nxc4 {[%clk 0:01:24]}  Bxc4 {[%clk 0:01:37]} 19. Bxc4 {[%clk 0:01:17]}  Qxe4 {[%clk 0:01:29]} 20. Bd3 {[%clk 0:00:47]}  Qxc6 {[%clk 0:01:13]} 21. Bxf6 {[%clk 0:00:37]}  Qxf6 {[%clk 0:00:51]} 22. Qxc5 {[%clk 0:00:35]}  Rac8 {[%clk 0:00:47]} 23. Qf5 {[%clk 0:00:34]}  Qxf5 {[%clk 0:00:45]} 24. Bxf5 {[%clk 0:00:35]}  Rc4 {[%clk 0:00:44]} 25. Bd3 {[%clk 0:00:30]}  Rxa4 {[%clk 0:00:43]} 26. Rxa4 {[%clk 0:00:29]}  Nxa4 {[%clk 0:00:44]} 27. Ra1 {[%clk 0:00:28]}  Nc5 {[%clk 0:00:44]} 28. Bf1 {[%clk 0:00:28]}  a4 {[%clk 0:00:43]} 29. Ra3 {[%clk 0:00:27]}  Rd8 {[%clk 0:00:37]} 30. Nc3 {[%clk 0:00:26]}  g6 {[%clk 0:00:17]} 31. g3 {[%clk 0:00:26]}  Ra8 {[%clk 0:00:15]} 32. Kg2 {[%clk 0:00:25]}  Kg7 {[%clk 0:00:13]} 33. Bb5 {[%clk 0:00:25]}  Rd8 {[%clk 0:00:06]} 34. Nxa4 {[%clk 0:00:22]}  Ne4 {[%clk 0:00:04]} 35. Rd3 {[%clk 0:00:20]}  Rb8 {[%clk 0:00:03]} 36. Bc6 {[%clk 0:00:18]}  Nf6 {[%clk 0:00:02]} 37. Bf3 {[%clk 0:00:18]}  Rb4 {[%clk 0:00:02]} 38. Nc5 {[%clk 0:00:18]}  Rb2 {[%clk 0:00:02]} 39. Ne4 {[%clk 0:00:18]}  Nxe4 {[%clk 0:00:01]} 40. Bxe4 {[%clk 0:00:17]}  Re2 {[%clk 0:00:02]} 41. Bf3 {[%clk 0:00:18]}  Rb2 {[%clk 0:00:02]} 42. Rd7 {[%clk 0:00:18]}  Kf8 {[%clk 0:00:02]} 43. Bd5 {[%clk 0:00:17]}  f6 {[%clk 0:00:02]} 44. Rxh7 {[%clk 0:00:17]} 1-0


[Site "https://www.chess.com"]